fUSD/lending_fUSD_20240214
["ID","MTS","AMOUNT","RATE_DAILY","PERIOD"]
[314017135,1707923569519,-974.92,0.00041643,7]
[314017136,1707923569528,-855.82,0.00041643,7]
[314017137,1707923569538,-1157.75,0.00041643,7]
[314017138,1707923569548,-896.42,0.00041643,2]
[314017139,1707923569558,-500.0,0.00041643,7]
[314017140,1707923569568,-351.63201576,0.00041643,7]
[314017141,1707923569577,-544.41,0.00041643,7]
[314017142,1707923569586,-586.61,0.00041643,7]
[314017143,1707923569596,-500.0,0.00041643,20]
[314017144,1707923569605,-863.99,0.00041643,7]
[314017145,1707923569614,-969.91,0.00041643,7]
[314017146,1707923569623,-500.0,0.00041643,7]
[314017147,1707923569633,-597.96,0.00041643,2]
[314017148,1707923569642,-1237.52,0.00041643,7]
[314017149,1707923569652,-500.0,0.00041643,7]
[314017150,1707923569662,-500.0,0.00041643,7]
[314017151,1707923569672,-686.48,0.00041643,7]
[314017152,1707923569681,-633.51,0.00041643,7]
[314017153,1707923569689,-500.0,0.00041643,7]
[314017154,1707923569699,-1310.86,0.00041643,7]
[314017155,1707923569711,-646.21,0.00041643,7]
[314017156,1707923569721,-643.81,0.00041643,7]
[314017157,1707923569730,-632.83,0.00041643,7]
[314017158,1707923569740,-1166.74,0.00041643,7]
[314017159,1707923569750,-500.0,0.00041643,7]
[314017160,1707923569759,-317.03671089,0.00041643,7]
[314017161,1707923569769,-778.72,0.00041643,7]
[314017162,1707923569778,-537.19,0.00041643,7]
[314017163,1707923569788,-522.92,0.00041643,7]
[314017164,1707923569797,-500.0,0.00041643,7]
[314017165,1707923569807,-839.23,0.00041643,7]
[314017166,1707923569816,-500.0,0.00041643,7]
[314017167,1707923569826,-540.0,0.00041643,7]
[314017168,1707923569836,-860.82,0.00041643,7]
[314017169,1707923569846,-710.26,0.00041643,7]
[314017170,1707923569855,-500.0,0.00041643,7]
[314017171,1707923569865,-594.3,0.00041643,7]
[314017172,1707923569875,-1376.8,0.00041643,7]
[314017173,1707923569885,-563.0,0.00041643,7]
[314017174,1707923569895,-689.41,0.00041643,7]
[314017175,1707923569904,-1735.17,0.00041643,7]
[314017176,1707923569914,-1292.66,0.00041643,7]
[314017177,1707923569924,-2576.99,0.00041643,7]
[314017178,1707923569933,-500.0,0.00041643,7]
[314017179,1707923569946,-1880.82,0.00041643,7]
[314017180,1707923569956,-551.14,0.00041643,7]
[314017181,1707923569965,-1420.44,0.00041643,7]
[314017182,1707923569977,-713.29,0.00041643,7]
[314017183,1707923569987,-1306.77,0.00041643,7]
[314017184,1707923569997,-865.48,0.00041643,7]
[314017185,1707923570006,-798.43,0.00041643,7]
[314017186,1707923570016,-792.44,0.00041643,7]
[314017187,1707923570026,-1762.73,0.00041643,7]
[314017188,1707923570036,-577.68047661,0.00041643,7]
[314017189,1707923570045,-566.85,0.00041643,7]
[314017190,1707923570055,-616.16,0.00041643,7]
[314017191,1707923570065,-721.07,0.00041643,7]
[314017192,1707923570076,-500.0,0.00041643,7]
[314017193,1707923570086,-501.48,0.00041643,7]
[314017194,1707923570096,-1882.77,0.00041643,7]
[314017195,1707923570106,-804.17,0.00041643,7]
[314017196,1707923570116,-500.0,0.00041643,7]
[314017197,1707923570126,-1538.55,0.00041643,7]
[314017198,1707923570136,-747.44,0.00041643,7]
[314017199,1707923570146,-500.0,0.00041643,7]
[314017200,1707923570156,-1390.73,0.00041643,7]
[314017201,1707923570166,-1109.74,0.00041643,7]
[314017202,1707923570176,-632.23,0.00041643,7]
[314017203,1707923570187,-166.45940612,0.00041643,7]
[314017204,1707923570199,-886.7,0.00041643,7]
[314017205,1707923570209,-500.0,0.00041643,7]
[314017206,1707923570219,-582.6,0.00041643,7]
[314017207,1707923570229,-631.42,0.00041643,7]
[314017208,1707923570240,-1281.5,0.00041643,7]
[314017209,1707923570250,-237.63013602,0.00041643,7]
[314017210,1707923570259,-407.2936203,0.00041643,7]
[314017211,1707923570269,-1512.4,0.00041643,7]
[314017212,1707923570279,-669.64,0.00041643,7]
[314017213,1707923570289,-2645.87,0.00041643,7]
[314017214,1707923570298,-649.97,0.00041643,7]
[314017215,1707923570308,-9592.87,0.00041643,7]
[314017216,1707923570317,-6589.39,0.00041643,7]
[314017217,1707923570327,-500.0,0.00041643,7]
[314017218,1707923570337,-537.36,0.00041643,7]
[314017219,1707923570346,-1074.08,0.00041643,7]
[314017220,1707923570355,-712.86,0.00041643,7]
[314017221,1707923570365,-10349.22,0.00041643,7]
[314017222,1707923570544,-363.26704689,0.00041643,7]
[314017223,1707923570574,-2138.7,0.00041643,7]
[314017224,1707923570583,-2522.18,0.00041643,7]
[314017225,1707923570592,-1253.86,0.00041643,7]
[314017226,1707923570601,-500.0,0.00041643,7]
[314017227,1707923570610,-775.14,0.00041643,7]
[314017228,1707923570619,-5438.42,0.00041643,7]
[314017229,1707923570628,-617.22,0.00041643,7]
[314017230,1707923570637,-5792.28,0.00041643,7]
[314017231,1707923570646,-1042.95,0.00041643,7]
[314017232,1707923570655,-500.0,0.00041643,7]
[314017233,1707923570665,-1305.25,0.00041643,7]
[314017234,1707923570674,-1375.63,0.00041643,7]
[314017235,1707923570684,-500.0,0.00041643,7]
[314017236,1707923570697,-1101.1,0.00041643,7]
[314017237,1707923570706,-1710.63,0.00041643,7]
[314017238,1707923570716,-1942.7,0.00041643,7]
[314017239,1707923570726,-3610.33,0.00041643,7]
[314017240,1707923570736,-656.71,0.00041643,7]
[314017241,1707923570746,-500.0,0.00041643,7]
[314017242,1707923570755,-508.16,0.00041643,7]
[314017243,1707923570765,-500.0,0.00041643,7]
[314017244,1707923570775,-2795.61,0.00041643,7]
[314017245,1707923570784,-13119.1,0.00041643,7]
[314017246,1707923570794,-4841.93,0.00041643,7]
[314017247,1707923570804,-789.06,0.00041643,7]
[314017248,1707923570813,-1486.36,0.00041643,7]
[314017249,1707923570823,-1122.77,0.00041643,7]
[314017250,1707923570833,-3238.15,0.00041643,7]
[314017251,1707923570843,-5897.47,0.00041643,7]
[314017252,1707923570853,-805.46,0.00041643,7]
[314017253,1707923570863,-664.49,0.00041643,7]
[314017254,1707923570872,-1313.77,0.00041643,7]
[314017255,1707923570882,-574.19,0.00041643,7]
[314017256,1707923570892,-11522.74,0.00041643,7]
[314017257,1707923570902,-1290.94,0.00041643,7]
[314017258,1707923570911,-520.12,0.00041643,7]
[314017259,1707923570921,-1511.05,0.00041643,7]
[314017260,1707923570931,-879.95,0.00041643,7]
[314017261,1707923570940,-6267.83,0.00041643,7]
[314017262,1707923570952,-2830.38,0.00041643,7]
[314017263,1707923570962,-763.78,0.00041643,7]
[314017264,1707923570972,-1371.91,0.00041643,7]
[314017265,1707923570981,-626.07,0.00041643,7]
[314017266,1707923570995,-4425.6,0.00041643,7]
[314017267,1707923571005,-986.33,0.00041643,7]
[314017268,1707923571014,-45639.2,0.00041643,7]
[314017269,1707923571024,-5389.09,0.00041643,7]
[314017270,1707923571035,-1240.03,0.00041643,7]
[314017271,1707923571045,-558.68,0.00041643,7]
[314017272,1707923571055,-4636.49,0.00041643,7]
[314017273,1707923571064,-5227.83,0.00041643,7]
[314017274,1707923571074,-525.56,0.00041643,7]
[314017275,1707923571084,-2461.93,0.00041643,7]
[314017276,1707923571093,-682.43,0.00041643,7]
[314017277,1707923571104,-1031.1,0.00041643,7]
[314017278,1707923571114,-1060.11,0.00041643,7]
[314017279,1707923571123,-3757.3,0.00041643,7]
[314017280,1707923571133,-741.06,0.00041643,7]
[314017281,1707923571143,-777.41,0.00041643,7]
[314017282,1707923571153,-838.79,0.00041643,7]
[314017283,1707923571163,-866.09,0.00041643,7]
[314017284,1707923571173,-1479.6,0.00041643,7]
[314017285,1707923571183,-3315.92,0.00041643,7]
[314017286,1707923571193,-8419.92,0.00041643,7]
[314017287,1707923571207,-1669.6,0.00041643,7]
[314017288,1707923571218,-1425.19,0.00041643,7]
[314017289,1707923571228,-941.92,0.00041643,7]
[314017290,1707923571238,-1068.3,0.00041643,7]
[314017291,1707923571248,-978.39,0.00041643,7]
[314017292,1707923571258,-1743.01,0.00041643,7]
[314017293,1707923571268,-500.0,0.00041643,7]
[314017294,1707923571277,-527.53,0.00041643,7]
[314017295,1707923571287,-2618.16,0.00041643,7]
[314017296,1707923571297,-5014.41,0.00041643,7]
[314017297,1707923571307,-16404.96,0.00041643,7]
[314017298,1707923571316,-1253.74,0.00041643,7]
[314017299,1707923571326,-1428.29,0.00041643,7]
[314017300,1707923571336,-12919.21,0.00041643,7]
[314017301,1707923571345,-500.0,0.00041643,7]
[314017302,1707923571355,-725.51,0.00041643,7]
[314017303,1707923571366,-564.17,0.00041643,7]
[314017304,1707923571376,-670.32,0.00041643,7]
[314017305,1707923571385,-608.21,0.00041643,7]
[314017306,1707923571396,-3982.22,0.00041643,7]
[314017307,1707923571406,-15886.12,0.00041643,7]
[314017308,1707923571417,-2293.57,0.00041643,7]
[314017309,1707923571426,-1912.2,0.00041643,7]
[314017310,1707923571437,-1078.52,0.00041643,7]
[314017311,1707923571447,-1675.86,0.00041643,7]
[314017312,1707923571457,-4682.24,0.00041643,7]
[314017313,1707923571467,-998.25,0.00041643,7]
[314017314,1707923571477,-1548.99,0.00041643,7]
[314017315,1707923571487,-1678.3,0.00041643,7]
[314017316,1707923571498,-2172.47,0.00041643,7]
[314017317,1707923571507,-4636.94,0.00041643,7]
[314017318,1707923571517,-905.58,0.00041643,7]
[314017319,1707923571527,-3347.59,0.00041643,7]
[314017320,1707923571537,-24853.72,0.00041643,7]
[314017321,1707923571546,-2682.03,0.00041643,7]
[314017322,1707923571556,-500.0,0.00041643,7]
[314017323,1707923571567,-741.23,0.00041643,7]
[314017324,1707923571577,-504.17,0.00041643,7]
[314017325,1707923571587,-4661.42,0.00041643,7]
[314017326,1707923571596,-644.02,0.00041643,7]
[314017327,1707923571606,-1447.91,0.00041643,7]
[314017328,1707923571616,-870.17,0.00041643,7]
[314017329,1707923571626,-575.73,0.00041643,2]
[314017330,1707923571635,-513.51,0.00041643,7]
[314017331,1707923571645,-13772.64,0.00041643,7]
[314017332,1707923571655,-734.67,0.00041643,7]
[314017333,1707923571665,-861.53,0.00041643,7]
[314017334,1707923571675,-4963.65,0.00041643,7]
[314017335,1707923571686,-4015.51,0.00041643,7]
[314017336,1707923571697,-1647.66,0.00041643,7]
[314017337,1707923571706,-500.0,0.00041643,7]
[314017338,1707923571716,-834.17,0.00041643,7]
[314017339,1707923571726,-1651.62,0.00041643,7]
[314017340,1707923571735,-1367.71,0.00041643,7]
[314017341,1707923571744,-705.01,0.00041643,7]
[314017342,1707923571754,-738.43,0.00041643,7]
[314017343,1707923571763,-500.0,0.00041643,7]
[314017344,1707923571773,-1232.76,0.00041643,7]
[314017345,1707923571782,-2624.93,0.00041643,7]
[314017346,1707923571791,-1605.94,0.00041643,7]
[314017347,1707923571800,-1397.98,0.00041643,7]
[314017348,1707923571810,-6303.05,0.00041643,7]
[314017349,1707923571820,-3882.2,0.00041643,7]
[314017350,1707923571829,-1424.26,0.00041643,7]
[314017351,1707923571838,-6796.38,0.00041643,7]
[314017352,1707923571847,-9115.46,0.00041643,7]
[314017353,1707923571856,-1430.04,0.00041643,7]
[314017354,1707923571865,-876.71,0.00041643,7]
[314017355,1707923571875,-6722.84,0.00041643,7]
[314017356,1707923571884,-1159.69,0.00041643,7]
[314017357,1707923571893,-1566.04,0.00041643,7]
[314017358,1707923571903,-5625.73,0.00041643,7]
[314017359,1707923571913,-742.15,0.00041643,7]
[314017360,1707923571922,-1074.84,0.00041643,7]
[314017361,1707923571932,-21955.42,0.00041643,7]
[314017362,1707923571941,-10536.73,0.00041643,7]
[314017363,1707923571953,-1224.55,0.00041643,7]
[314017364,1707923571963,-544.37092905,0.00041643,7]
[314017365,1707923571972,-1141.82,0.00041643,7]
[314017366,1707923571986,-3349.17,0.00041643,7]
[314017367,1707923571996,-4103.23,0.00041643,7]
[314017368,1707923572005,-15646.43,0.00041643,7]
[314017369,1707923572015,-500.0,0.00041643,7]
[314017370,1707923572025,-580.0,0.00041643,7]
[314017371,1707923572034,-888.9,0.00041643,7]
[314017372,1707923572044,-849.7,0.00041643,7]
[314017373,1707923572053,-1131.16,0.00041643,7]
[314017374,1707923572063,-970.39,0.00041643,7]
[314017375,1707923572074,-1000.0,0.00041643,30]
[314017376,1707923572084,-2458.64,0.00041643,7]
[314017377,1707923572093,-1032.81,0.00041643,7]
[314017378,1707923572102,-940.22,0.00041643,7]
[314017379,1707923572111,-845.63,0.00041643,7]
[314017380,1707923572120,-861.05,0.00041643,7]
[314017381,1707923572130,-2020.71,0.00041643,7]
[314017382,1707923572140,-655.93,0.00041643,7]
[314017383,1707923572149,-4353.77,0.00041643,7]
[314017384,1707923572158,-2136.24,0.00041643,7]
[314017385,1707923572167,-1868.07,0.00041643,7]
[314017386,1707923572177,-3468.32,0.00041643,7]
[314017387,1707923572186,-1175.69,0.00041643,7]
[314017388,1707923572196,-4307.44,0.00041643,7]
[314017389,1707923572209,-2131.96,0.00041643,7]
[314017390,1707923572218,-4133.28,0.00041643,7]
[314017391,1707923572228,-3754.14,0.00041643,7]
[314017392,1707923572238,-500.0,0.00041643,7]
[314017393,1707923572247,-1200.28,0.00041643,7]
[314017394,1707923572258,-551.94,0.00041643,7]
[314017395,1707923572267,-1428.62,0.00041643,7]
[314017396,1707923572277,-2643.73,0.00041643,7]
[314017397,1707923572287,-1293.93,0.00041643,7]
[314017398,1707923572296,-4255.94,0.00041643,7]
[314017399,1707923572306,-1073.43,0.00041643,7]
[314017400,1707923572315,-1154.7,0.00041643,7]
[314017401,1707923572325,-1681.08,0.00041643,7]
[314017402,1707923572334,-749.27,0.00041643,7]
[314017403,1707923572344,-696.07,0.00041643,7]
[314017404,1707923572354,-1992.67,0.00041643,7]
[314017405,1707923572364,-1960.66,0.00041643,7]
[314017406,1707923572374,-4598.11,0.00041643,7]
[314017407,1707923572384,-2148.61,0.00041643,7]
[314017408,1707923572393,-776.5,0.00041643,7]
[314017409,1707923572402,-876.47,0.00041643,7]
[314017410,1707923572412,-759.83,0.00041643,7]
[314017411,1707923572421,-907.63,0.00041643,7]
[314017412,1707923572430,-1863.83,0.00041643,7]
[314017413,1707923572439,-22229.37,0.00041643,7]
[314017414,1707923572450,-2233.48,0.00041643,7]
[314017415,1707923572459,-1407.78,0.00041643,7]
[314017416,1707923572468,-500.0,0.00041643,7]
[314017417,1707923572477,-2807.7,0.00041643,7]
[314017418,1707923572486,-749.48,0.00041643,7]
[314017419,1707923572496,-770.43,0.00041643,7]
[314017420,1707923572505,-500.0,0.00041643,7]
[314017421,1707923572515,-4409.87,0.00041643,7]
[314017422,1707923572525,-940.66,0.00041643,7]
[314017423,1707923572535,-1582.96,0.00041643,7]
[314017424,1707923572544,-778.24,0.00041643,7]
[314017425,1707923572553,-819.98,0.00041643,7]
[314017426,1707923572562,-150.0,0.00041643,30]
[314017427,1707923572572,-154.65466196,0.00041647,30]
[314017428,1707923572581,-151.021421,0.00041648,21]
[314017429,1707923572590,-500.0,0.00041666,7]
[314017430,1707923572600,-239.29468169,0.00041667,30]
[314017431,1707923572609,-239.29468169,0.00041678,30]
[314017432,1707923572619,-3312.13,0.000417,7]
[314017433,1707923572629,-4191.0,0.000417,87]
[314017434,1707923572639,-235.13880492,0.00041705,30]
[314017435,1707923572649,-151.44662462,0.00041724,30]
[314017436,1707923572658,-158.91651164,0.00041732,30]
[314017437,1707923572668,-5000.0,0.00041734,10]
[314017438,1707923572678,-5000.0,0.00041734,6]
[314017439,1707923572687,-5000.0,0.00041734,10]
[314017440,1707923572699,-160.50924634,0.00041735,30]
[314017441,1707923572707,-151.02142,0.00041748,20]
[314017442,1707923572716,-171.10947593,0.00041753,30]
[314017443,1707923572725,-354.81402348,0.00041757,30]
[314017444,1707923572734,-154.41789369,0.00041758,30]
[314017445,1707923572743,-504.67274937,0.0004176,60]
[314017446,1707923572753,-155.43902418,0.00041761,30]
[314017447,1707923572762,-172.87855,0.00041766,30]
[314017448,1707923572772,-17316.35068041,0.0004178,7]
[314017449,1707923572781,-239.29468169,0.00041783,30]
[314017450,1707923572790,-154.57525399,0.00041791,30]
[314017451,1707923572799,-150.0,0.00041792,3]
[314017452,1707923572809,-150.0,0.00041792,3]
[314017453,1707923572818,-558.97515037,0.000418,30]
[314017454,1707923572828,-1000.0,0.000418,30]
[314017455,1707923572837,-4448.11662216,0.000418,10]
[314017456,1707923572846,-300.0,0.000418,48]
[314017457,1707923572856,-1000.0,0.000418,45]
[314017458,1707923572865,-172.87855,0.00041801,30]
[314017459,1707923572874,-239.29468169,0.00041803,30]
[314017460,1707923572883,-150.0,0.00041812,30]
[314017461,1707923572892,-164.02246197,0.00041829,30]
[314017462,1707923572902,-239.29468169,0.00041835,30]
[314017463,1707923572911,-154.03006511,0.00041845,30]
[314017464,1707923572920,-3547.57525411,0.00041847,5]
[314017465,1707923572930,-180000.0,0.0004186,10]
[314017466,1707923572939,-156.61267289,0.00041864,30]
[314017467,1707923572950,-358.85958455,0.00041867,30]
[314017468,1707923572959,-5000.52925234,0.0004189,14]
[314017469,1707923572968,-3000.0,0.0004189,11]
[314017470,1707923572981,-657.90689477,0.00041891,30]
[314017471,1707923572991,-1000.0,0.000419,14]
[314017472,1707923573002,-621.0,0.000419,30]
[314017473,1707923573012,-161.42546737,0.00041907,30]
[314017474,1707923573021,-235.13880492,0.00041909,30]
[314017475,1707923573030,-500.0,0.00041917,31]
[314017476,1707923573039,-500.0,0.00041917,7]
[314017477,1707923573049,-636.47,0.00041917,7]
[314017478,1707923573058,-968.71,0.00041917,7]
[314017479,1707923573069,-616.50135896,0.00041917,7]
[314017480,1707923573078,-179.31539377,0.00041917,7]
[314017481,1707923573088,-500.0,0.00041917,7]
[314017482,1707923573098,-536.83,0.00041917,7]
[314017483,1707923573108,-511.55,0.00041917,7]
[314017484,1707923573117,-564.0,0.00041917,7]
[314017485,1707923573127,-1240.83,0.00041917,7]
[314017486,1707923573137,-1171.11,0.00041917,7]
[314017487,1707923573146,-564.08,0.00041917,7]
[314017488,1707923573156,-1281.17,0.00041917,7]
[314017489,1707923573166,-1147.23,0.00041917,7]
[314017490,1707923573176,-568.35,0.00041917,7]
[314017491,1707923573186,-1433.14,0.00041917,7]
[314017492,1707923573195,-530.02,0.00041917,7]
[314017493,1707923573207,-1489.83,0.00041917,7]
[314017494,1707923573217,-528.29,0.00041917,7]
[314017495,1707923573227,-1024.97,0.00041917,7]
[314017496,1707923573236,-569.56,0.00041917,7]
[314017497,1707923573245,-785.09,0.00041917,7]
[314017498,1707923573254,-1152.13,0.00041917,7]
[314017499,1707923573263,-1376.22,0.00041917,2]
[314017500,1707923573272,-500.0,0.00041917,7]
[314017501,1707923573282,-770.95,0.00041917,7]
[314017502,1707923573291,-1599.92,0.00041917,7]
[314017503,1707923573299,-500.0,0.00041917,7]
[314017504,1707923573309,-1153.23,0.00041917,7]
[314017505,1707923573318,-1045.09,0.00041917,7]
[314017506,1707923573327,-774.56,0.00041917,7]
[314017507,1707923573337,-1031.35,0.00041917,7]
[314017508,1707923573346,-548.76,0.00041917,7]
[314017509,1707923573355,-500.0,0.00041917,7]
[314017510,1707923573364,-661.87,0.00041917,7]
[314017511,1707923573374,-500.0,0.00041917,7]
[314017512,1707923573383,-584.37,0.00041917,7]
[314017513,1707923573392,-520.1,0.00041917,7]
[314017514,1707923573401,-1604.0,0.00041917,7]
[314017515,1707923573410,-500.0,0.00041917,7]
[314017516,1707923573419,-943.16,0.00041917,7]
[314017517,1707923573428,-644.22,0.00041917,7]
[314017518,1707923573437,-1264.92,0.00041917,7]
[314017519,1707923573446,-704.7,0.00041917,7]
[314017520,1707923573457,-1136.26,0.00041917,7]
[314017521,1707923573467,-570.14,0.00041917,7]
[314017522,1707923573476,-553.03,0.00041917,7]
[314017523,1707923573485,-812.61,0.00041917,7]
[314017524,1707923573494,-519.06,0.00041917,7]
[314017525,1707923573503,-733.41,0.00041917,7]
[314017526,1707923573512,-1130.05,0.00041917,7]
[314017527,1707923573521,-674.48,0.00041917,7]
[314017528,1707923573532,-599.48,0.00041917,7]
[314017529,1707923573541,-699.45,0.00041917,7]
[314017530,1707923573551,-808.31,0.00041917,7]
[314017531,1707923573560,-647.83,0.00041917,7]
[314017532,1707923573570,-1377.65,0.00041917,7]
[314017533,1707923573579,-734.76,0.00041917,7]
[314017534,1707923573588,-1145.4,0.00041917,7]
[314017535,1707923573597,-1361.9,0.00041917,7]
[314017536,1707923573606,-1574.35,0.00041917,7]
[314017537,1707923573615,-500.0,0.00041917,7]
[314017538,1707923573624,-500.0,0.00041917,7]
[314017539,1707923573632,-1000.98,0.00041917,7]
[314017540,1707923573641,-940.65,0.00041917,7]
[314017541,1707923573650,-819.39,0.00041917,7]
[314017542,1707923573660,-664.33,0.00041917,7]
[314017543,1707923573669,-574.43,0.00041917,7]
[314017544,1707923573678,-582.92,0.00041917,7]
[314017545,1707923573687,-709.41,0.00041917,7]
[314017546,1707923573696,-523.78,0.00041917,7]
[314017547,1707923573708,-584.12,0.00041917,7]
[314017548,1707923573717,-629.64,0.00041917,7]
[314017549,1707923573727,-549.4,0.00041917,7]
[314017550,1707923573736,-1007.67,0.00041917,7]
[314017551,1707923573745,-2090.09,0.00041917,7]
[314017552,1707923573755,-964.24,0.00041917,7]
[314017553,1707923573764,-365.13277253,0.00041917,7]
[314017554,1707923573774,-633.52,0.00041917,7]
[314017555,1707923573783,-500.0,0.00041917,7]
[314017556,1707923573793,-1464.25,0.00041917,7]
[314017557,1707923573802,-1470.37,0.00041917,7]
[314017558,1707923573811,-500.0,0.00041917,7]
[314017559,1707923573821,-608.25,0.00041917,7]
[314017560,1707923573830,-760.6,0.00041917,7]
[314017561,1707923573841,-547.73,0.00041917,7]
[314017562,1707923573851,-1725.04,0.00041917,7]
[314017563,1707923573860,-554.39,0.00041917,7]
[314017564,1707923573869,-1351.58,0.00041917,7]
[314017565,1707923573879,-638.35,0.00041917,7]
[314017566,1707923573887,-619.45,0.00041917,7]
[314017567,1707923573897,-974.92,0.00041917,7]
[314017568,1707923573906,-855.82,0.00041917,7]
[314017569,1707923573915,-1157.75,0.00041917,7]
[314017570,1707923573925,-896.42,0.00041917,2]
[314017571,1707923573934,-500.0,0.00041917,7]
[314017572,1707923573943,-544.41,0.00041917,7]
[314017573,1707923573957,-586.61,0.00041917,7]
[314017574,1707923573966,-500.0,0.00041917,20]
[314017575,1707923573976,-863.99,0.00041917,7]
[314017576,1707923573986,-969.91,0.00041917,7]
[314017577,1707923573997,-500.0,0.00041917,7]
[314017578,1707923574006,-597.96,0.00041917,2]
[314017579,1707923574016,-1237.52,0.00041917,7]
[314017580,1707923574026,-500.0,0.00041917,7]
[314017581,1707923574035,-287.94997959,0.00041917,7]
[314017582,1707923574044,-686.48,0.00041917,7]
[314017583,1707923574054,-633.51,0.00041917,7]
[314017584,1707923574063,-500.0,0.00041917,7]
[314017585,1707923574074,-1310.86,0.00041917,7]
[314017586,1707923574084,-646.21,0.00041917,7]
[314017587,1707923574094,-643.81,0.00041917,7]
[314017588,1707923574104,-632.83,0.00041917,7]
[314017589,1707923574113,-1166.74,0.00041917,7]
[314017590,1707923574123,-170.5377557,0.00041917,7]
[314017591,1707923574132,-778.72,0.00041917,7]
[314017592,1707923574141,-537.19,0.00041917,7]
[314017593,1707923574151,-522.92,0.00041917,7]
[314017594,1707923574160,-500.0,0.00041917,7]
[314017595,1707923574169,-839.23,0.00041917,7]
[314017596,1707923574178,-365.10501651,0.00041917,7]
[314017597,1707923574188,-540.0,0.00041917,7]
[314017598,1707923574199,-860.82,0.00041917,7]
[314017599,1707923574208,-710.26,0.00041917,7]
[314017600,1707923574218,-500.0,0.00041917,7]
[314017601,1707923574227,-594.3,0.00041917,7]
[314017602,1707923574236,-1376.8,0.00041917,7]
[314017603,1707923574246,-563.0,0.00041917,7]
[314017604,1707923574255,-689.41,0.00041917,7]
[314017605,1707923574264,-1735.17,0.00041917,7]
[314017606,1707923574274,-1292.66,0.00041917,7]
[314017607,1707923574284,-2576.99,0.00041917,7]
[314017608,1707923574293,-500.0,0.00041917,7]
[314017609,1707923574302,-1880.82,0.00041917,7]
[314017610,1707923574311,-551.14,0.00041917,7]
[314017611,1707923574320,-1420.44,0.00041917,7]
[314017612,1707923574330,-713.29,0.00041917,7]
[314017613,1707923574340,-1306.77,0.00041917,7]
[314017614,1707923574350,-865.48,0.00041917,7]
[314017615,1707923574359,-798.43,0.00041917,7]
[314017616,1707923574369,-792.44,0.00041917,7]
[314017617,1707923574378,-1762.73,0.00041917,7]
[314017618,1707923574387,-566.85,0.00041917,7]
[314017619,1707923574396,-616.16,0.00041917,7]
[314017620,1707923574405,-721.07,0.00041917,7]
[314017621,1707923574414,-500.0,0.00041917,7]
[314017622,1707923574424,-501.48,0.00041917,7]
[314017623,1707923574433,-1882.77,0.00041917,7]
[314017624,1707923574442,-804.17,0.00041917,7]
[314017625,1707923574454,-500.0,0.00041917,7]
[314017626,1707923574463,-1538.55,0.00041917,7]
[314017627,1707923574472,-747.44,0.00041917,7]
[314017628,1707923574482,-438.44253861,0.00041917,7]
[314017629,1707923574491,-1390.73,0.00041917,7]
[314017630,1707923574500,-1109.74,0.00041917,7]
[314017631,1707923574510,-632.23,0.00041917,7]
[314017632,1707923574709,-886.7,0.00041917,7]
[314017633,1707923574719,-500.0,0.00041917,7]
[314017634,1707923574728,-582.6,0.00041917,7]